[Event "XV American Continental 2022"]
[Site "San Salvador"]
[Date "2022.05.09"]
[Round "10.5"]
[White "Yoo, Christopher Woojin"]
[Black "Mekhitarian, Krikor Sevag"]
[Result "1-0"]
[ECO "C80"]
[WhiteElo "2535"]
[BlackElo "2569"]
[Annotator "TA"]
[PlyCount "181"]
[EventDate "2022.05.02"]
[EventCountry "ESA"]
[SourceTitle "playchess.com"]
[Source "ChessBase"]
[SourceQuality "1"]
[TimeControl "40/5400+30:1800+30"]

{[%evp 25,181,34,39,26,16,-69,-54,-298,-282,-284,-279,-275,-139,-152,-142,-120,-27,-169,-39,-58,-42,-29,19,10,8,15,33,37,72,71,62,64,79,77,73,74,91,91,89,98,93,89,90,91,119,90,100,101,114,111,116,83,117,117,132,139,152,163,184,184,185,180,206,204,203,198,196,182,245,244,237,241,279,271,307,293,296,264,306,306,314,308,293,217,307,273,239,228,382,363,370,0,250,0,376,374,383,368,327,291,371,360,403,287,383,322,422,416,474,400,486,483,491,473,467,472,463,387,525,405,831,835,745,453,441,443,424,395,451,433,611,685,683,683,660,644,635,631,631,573,548,561,640,552,546,572,1177,1053,2109,1926,12836,10329,12842,12843,12841,1448,1822,1767]} 1. e4 {[%emt 0:00:07]} e5 {[%emt 0:00:04]} 2. Nf3 {[%emt 0:00:49]} Nc6 {[%emt 0:00:05]} 3. Bb5 {[%emt 0:01:33]} a6 {[%emt 0:00:11]} 4. Ba4 {[%emt 0:00:03]} Nf6 {[%emt 0:00:18]} 5. O-O {[%emt 0:03:32]} Nxe4 {[%emt 0:00:14]} 6. d4 {[%emt 0:00:06]} Be7 {[%emt 0:00:09]} 7. Re1 {[%emt 0:04:11]} b5 {[%emt 0:00:37]} 8. Rxe4 {[%emt 0:02:21]} d5 {[%emt 0:00:17]} 9. Nxe5 {[%emt 0:01:14]} Nxe5 {[%emt 0:00:13]} 10. Rxe5 {[%emt 0:00:05]} bxa4 {[%emt 0:00:02]} 11. Nc3 {[%emt 0:13:35]} O-O {[%emt 0:00:07]} 12. Nxa4 {[%emt 0:07:58]} Bd6 {[%emt 0:01:31]} 13. Re3 {[%emt 0:02:51]} Qh4 {[%emt 0:02:46]} 14. h3 {[%emt 0:00:48]} f5 {[%emt 0:14:21]} 15. Qf3 {[%emt 0:15:10]} (15. Re1 $11) 15... Qxd4 $15 {[%emt 0:09:44]} 16. Rd3 $2 {[%emt 0:05:34]} (16. Re1 $15) 16... Re8 $19 {[%emt 0:04:29]} 17. Re3 {[%emt 0:01:39]} Bb7 $1 {[%emt 0:26:34]} 18. Nc3 {[%emt 0:01:31]} f4 {[%emt 0:00:03]} (18... Qb6 $1 $19 {Threatens to win with ...d4.} 19. Nxd5 Qa5) 19. Re2 $17 {[%emt 0:00:36]} Rxe2 $1 {[%emt 0:09:20]} 20. Qxe2 {[%emt 0:00:11]} Qf6 {[%emt 0:04:13]} (20... Rf8 $17 21. Bd2 f3 22. Qe6+ Kh8) 21. Qd3 {[%emt 0:03:42] [#]} (21. Bd2 $11) 21... Re8 {[%emt 0:01:36]} (21... f3 $1 $19 {...Re8 is the strong threat.} 22. Bd2 fxg2 23. Nxd5 Qxb2) 22. Bd2 $15 {[%emt 0:01:00]} d4 {[%emt 0:03:29]} 23. Ne2 {[%emt 0:00:27]} f3 {[%emt 0:00:29]} (23... Qg5 $142 24. f3 c5) 24. Nxd4 $11 {[%emt 0:02:38]} Qe5 $1 {[%emt 0:07:52]} 25. g3 $1 {[%emt 0:00:25]} ({Don't blunder} 25. Nxf3 $2 Bxf3 26. g3 Qxb2 $19) 25... Qh5 {[%emt 0:01:02]} 26. Qf5 {[%emt 0:05:13]} Re5 {[%emt 0:08:56] [#]} 27. Qxh5 $1 {[%emt 0:00:44]} Rxh5 {[%emt 0:00:02]} 28. h4 {[%emt 0:00:31]} Rd5 {[%emt 0:00:04]} 29. Bc3 {[%emt 0:02:02]} Re5 {[%emt 0:02:06]} 30. Rd1 {[%emt 0:02:44]} g5 {[%emt 0:01:29]} 31. Nb3 {[%emt 0:01:52]} Rf5 {[%emt 0:00:54]} 32. hxg5 {[%emt 0:02:42]} Rxg5 {[%emt 0:00:21]} 33. Rd4 {[%emt 0:00:52]} Rd5 {[%emt 0:01:35]} 34. Rg4+ {[%emt 0:00:45]} Kf7 {[%emt 0:00:31]} 35. Bd4 {[%emt 0:01:41]} h5 {[%emt 0:00:34]} 36. Rg7+ {[%emt 0:00:58]} Kf8 {[%emt 0:00:00]} 37. Rh7 {[%emt 0:01:06]} Rf5 {[%emt 0:00:55]} 38. c4 {[%emt 0:04:53]} Bc6 {[%emt 0:00:51]} 39. Rh6 {[%emt 0:03:33]} Ba4 {[%emt 0:00:14]} 40. Nd2 {[%emt 0:01:50]} a5 {[%emt 0:01:16]} 41. Nf1 {[%emt 0:34:05]} Be8 {[%emt 0:02:21]} 42. Ne3 {[%emt 0:00:00]} Rg5 {[%emt 0:00:01]} 43. Rf6+ {[%emt 0:00:00]} Kg8 {[%emt 0:00:39]} 44. Rxf3 {[%emt 0:00:00]} Bf7 {[%emt 0:02:19]} 45. b3 {[%emt 0:00:00]} a4 {[%emt 0:00:07]} 46. Nf5 {[%emt 0:00:00]} ({Don't play} 46. bxa4 Ra5 $16) 46... Bf8 {[%emt 0:00:06]} (46... Be8 $142 47. Nxd6 cxd6) 47. Bf6 $18 {[%emt 0:00:00]} Rg6 {[%emt 0:02:51]} 48. Be7 {[%emt 0:00:00]} axb3 {[%emt 0:00:02]} 49. axb3 {[%emt 0:00:00]} Rb6 {[%emt 0:00:16]} 50. Bxf8 {[%emt 0:00:00]} Kxf8 {[%emt 0:00:02]} 51. Nd4 {[%emt 0:00:00]} Kg7 {[%emt 0:00:17]} 52. Kf1 {[%emt 0:00:00]} Bg6 {[%emt 0:00:21]} 53. Re3 {[%emt 0:00:00]} Kf6 {[%emt 0:00:01]} 54. f4 {[%emt 0:00:00]} Ra6 {[%emt 0:00:14]} (54... Rd6 $142) 55. c5 {[%emt 0:00:00]} Bf7 {[%emt 0:00:08]} 56. Kf2 {[%emt 0:00:34]} Ra5 $2 {[%emt 0:01:48]} (56... Ra2+ {was called for.} 57. Re2 Ra1) 57. Re5 $18 {[%emt 0:00:29]} Ra3 {[%emt 0:00:25]} 58. Re3 {[%emt 0:02:43]} Ra5 $1 {[%emt 0:00:04]} 59. Re5 {[%emt 0:01:51]} (59. Rc3 $142) 59... Ra3 $1 $18 {[%emt 0:00:01]} 60. Rf5+ {[%emt 0:00:22]} Kg6 {[%emt 0:01:04]} 61. Rg5+ {[%emt 0:00:30]} Kf6 {[%emt 0:00:03]} 62. c6 {[%emt 0:00:07]} Ra2+ {[%emt 0:00:37]} 63. Ke3 {[%emt 0:00:16]} Rb2 {[%emt 0:00:58]} 64. Kd3 {[%emt 0:00:57]} Rf2 {[%emt 0:01:19]} 65. Re5 {[%emt 0:01:44]} Bg6+ {[%emt 0:01:06]} 66. Ke3 {[%emt 0:00:34]} Rg2 {[%emt 0:00:12]} 67. Rg5 {[%emt 0:00:35]} Bf7 {[%emt 0:00:34]} 68. b4 {[%emt 0:00:09]} Rb2 {[%emt 0:00:32]} 69. Rb5 {[%emt 0:00:33]} Rg2 {[%emt 0:00:05]} 70. Rf5+ {[%emt 0:00:09]} Ke7 {[%emt 0:00:11]} 71. Rg5 {[%emt 0:00:03]} Rh2 {[%emt 0:00:59]} 72. Nb5 {[%emt 0:02:11]} Rb2 {[%emt 0:00:48]} (72... Rc2 $142 73. Nxc7 Rxc6 74. Nd5+ Kd6) 73. Nxc7 $18 {[%emt 0:00:41]} Kd6 {[%emt 0:00:13]} 74. Nb5+ {[%emt 0:01:10]} Kxc6 {[%emt 0:00:01]} 75. Nd4+ {[%emt 0:00:06]} Kd6 {[%emt 0:00:22]} 76. Rf5 {[%emt 0:00:16]} Ke7 {[%emt 0:00:10]} 77. b5 {[%emt 0:00:14]} Be8 {[%emt 0:00:33]} (77... Rb1 $142 78. Kd2 Bg6) 78. Re5+ $18 {[%emt 0:00:11]} Kf8 {[%emt 0:00:28]} 79. Ne6+ {[%emt 0:00:46]} Kg8 {[%emt 0:00:38]} 80. Rg5+ {[%emt 0:00:28]} Kh7 81. Nd4 {[%emt 0:00:38]} Rb1 {[%emt 0:00:42]} 82. Re5 {[%emt 0:01:20]} Bf7 {[%emt 0:00:04]} 83. Rc5 {[%emt 0:00:13]} Be8 {[%emt 0:00:25]} 84. Rg5 {[%emt 0:00:54]} Bf7 {[%emt 0:00:36]} 85. Nf5 {[%emt 0:00:26]} Bg6 {[%emt 0:00:23]} 86. Nd6 {[%emt 0:00:14]} Kh6 {[%emt 0:00:01]} 87. Kd4 {[%emt 0:00:13]} h4 {[%emt 0:00:57]} 88. gxh4 {[%emt 0:00:08]} Rb4+ {[%emt 0:00:02]} 89. Ke5 {[%emt 0:00:20]} Bd3 {[%emt 0:00:04]} 90. Rg8 {[%emt 0:00:25]} Kh5 {[%emt 0:00:30]} 91. f5 {[%emt 0:00:08]} 1-0

[Event "XV American Continental 2022"]
[Site "San Salvador"]
[Date "2022.05.09"]
[Round "10.6"]
[White "Proudian, Armen"]
[Black "Krysa, Leandro"]
[Result "1-0"]
[ECO "B62"]
[WhiteElo "2418"]
[BlackElo "2525"]
[Annotator "TA"]
[PlyCount "81"]
[EventDate "2022.05.02"]
[EventCountry "ESA"]
[SourceTitle "playchess.com"]
[Source "ChessBase"]
[SourceQuality "1"]
[TimeControl "40/5400+30:1800+30"]

{[%evp 13,81,26,35,14,23,15,36,0,0,0,0,0,0,0,41,31,125,122,113,116,135,131,138,54,59,59,55,44,31,0,19,0,0,0,0,0,0,0,0,0,0,0,0,0,0,0,0,0,0,-7,0,0,0,0,0,0,202,192,431,427,544,539,2356,635,12845,12843,12843,12843,12843,12843]} 1. e4 {[%emt 0:00:19]} c5 {[%emt 0:00:16]} 2. Nf3 {[%emt 0:00:26]} Nc6 {[%emt 0:00:12]} 3. d4 {[%emt 0:00:27]} cxd4 {[%emt 0:00:07]} 4. Nxd4 {[%emt 0:00:11]} Nf6 {[%emt 0:00:20]} 5. Nc3 {[%emt 0:00:37]} d6 {[%emt 0:00:20]} 6. Bg5 {[%emt 0:01:07]} e6 {[%emt 0:00:12]} 7. Bb5 {[%emt 0:01:16]} Bd7 {[%emt 0:02:02]} 8. Qd3 $1 {[%emt 0:01:06][%mdl 4] is recently more successful than 8.Bxc6. B62: Sicilian: Richter-Rauzer: 6...e6: Unusual White 7th moves.} Be7 {[%emt 0:03:38]} 9. O-O-O {[%emt 0:01:24]} Nxd4 {[%emt 0:01:06]} 10. Qxd4 {[%emt 0:15:34] White is slightly better.} Bxb5 {[%emt 0:12:39]} 11. Nxb5 {[%emt 0:00:14]} O-O {[%emt 0:02:15] [#]} 12. Kb1 $146 {[%emt 0:29:57][%cal Rb5d6]} ({Wrong is} 12. Nxd6 $2 Qxd6 13. Qxd6 Bxd6 14. Bxf6 Bf4+ 15. Kb1 gxf6 $19) ({Predecessor:} 12. h4 Qa5 13. Nc3 Rfc8 14. Kb1 Rc6 15. Qd2 Ra6 16. a3 b5 17. Bxf6 Bxf6 18. Na2 {½-½ (33) Popovic,D (2468)-Dardha,D (2532) Roquetas de Mar 2022}) 12... Qa5 {[%emt 0:08:49]} 13. Qd3 {[%emt 0:02:00]} Rfd8 {[%emt 0:04:29]} (13... a6 $5 {[%cal Ra6b5]} 14. Bxf6 Bxf6 15. Nxd6 Qb6 $11) 14. f4 {[%emt 0:06:24]} a6 {[%emt 0:12:56]} (14... Rd7 $14) 15. Bxf6 $16 {[%emt 0:02:02]} Bxf6 {[%emt 0:16:17]} 16. Nxd6 {[%emt 0:01:08]} Qb6 {[%emt 0:02:59][%csl Gf6][%cal Rb6b2] [#]} 17. e5 {[%emt 0:01:12][%cal Be4e5,Be5d6][%mdl 32]} Be7 {[%emt 0:00:10]} 18. g4 {[%emt 0:06:30] 0x0.002add1f4ffedp-1022s more active pieces.} (18. Rhe1 $16) 18... Bxd6 $14 {[%emt 0:03:38]} 19. exd6 {[%emt 0:00:09]} Rd7 {[%emt 0:00:05]} 20. Rd2 $1 {[%emt 0:01:02]} Rad8 {[%emt 0:05:16][%cal Rd7d6]} 21. Rhd1 {[%emt 0:00:10]} h5 $1 {[%emt 0:01:41]} 22. f5 {[%emt 0:10:33]} (22. gxh5 {with more complications.} Rxd6 23. Qxd6 Rxd6 24. Rxd6 Qf2 25. Rd8+) 22... exf5 {[%emt 0:03:18]} 23. gxf5 {[%emt 0:00:26]} Rxd6 {[%emt 0:01:05]} 24. Qxd6 {[%emt 0:00:11]} Rxd6 {[%emt 0:00:03]} 25. Rxd6 $11 {[%emt 0:00:08][%mdl 4096] Endgame KQ-KRR} Qf2 {[%emt 0:01:59][%csl LRf5,LRh2]} 26. Rd8+ {[%emt 0:02:04]} Kh7 {[%emt 0:00:04]} 27. R8d7 {[%emt 0:00:17][%csl LRb7,LRf7]} Qxf5 {[%emt 0:06:28]} 28. Rxb7 {[%emt 0:00:21]} Qf2 {[%emt 0:00:37]} 29. b3 {[%emt 0:01:21]} Qxh2 {[%emt 0:01:29]} 30. Rxf7 {[%emt 0:00:44]} h4 {[%emt 0:02:07]} 31. c4 {[%emt 0:03:18]} Qe5 {[%emt 0:06:09]} 32. Rf2 {[%emt 0:02:22]} Kh6 {[%emt 0:01:03]} (32... h3 $5 33. Rc2 Qe4 $11) 33. Rc2 {[%emt 0:00:32] [#] Black must now prevent c5.} Qc5 $1 {[%emt 0:00:26]} 34. Rd5 {[%emt 0:00:50]} Qg1+ {[%emt 0:00:38]} (34... Qc6 $1 $11 {and Black has nothing to worry.}) 35. Kb2 $18 {[%emt 0:00:30] Threatens to win with c5.} h3 $2 {[%emt 0:01:45]} (35... Qh1 {was worth a try.}) 36. Rd3 {[%emt 0:00:40] White is clearly winning.} Qf1 {[%emt 0:00:26]} 37. Rdc3 {[%emt 0:00:23]} ({Weaker is} 37. Rd6+ Kg5 $16) 37... g5 {[%emt 0:01:23] Hoping for ...g4.} 38. c5 {[%emt 0:00:21][%cal Bc4c5,Bc5c6,Bc6c7][%mdl 32] And now c6 would win.} g4 {[%emt 0:00:25] Strongly threatening ...Qf7.} 39. c6 {[%emt 0:00:06] c7 would kill now.} Qf5 {[%emt 0:00:37]} 40. c7 {[%emt 0:00:30]} Qc8 {[%emt 0:00:26]} 41. Rd2 {[%emt 0:33:03] Weighted Error Value: White=0.05 (flawless) /Black=0.33} 1-0

[Event "XV American Continental 2022"]
[Site "San Salvador"]
[Date "2022.05.09"]
[Round "10.7"]
[White "Cabezas Solano, David Alejandro"]
[Black "Thavandiran, Shiyam"]
[Result "0-1"]
[ECO "C02"]
[WhiteElo "2084"]
[BlackElo "2399"]
[Annotator "TA"]
[PlyCount "136"]
[EventDate "2022.05.02"]
[EventCountry "ESA"]
[SourceTitle "playchess.com"]
[Source "ChessBase"]
[SourceQuality "1"]
[TimeControl "40/5400+30:1800+30"]

{[%evp 13,136,0,32,19,35,-35,-22,-50,-62,-64,-79,-75,-52,-84,-84,-107,-91,-107,-80,-142,-122,-200,-190,-200,-195,-208,-195,-184,-162,-156,-118,-136,-123,-206,-208,-239,-217,-235,-170,-180,-203,-201,0,-167,0,-178,-198,-222,-178,-164,0,-250,-179,-299,-301,-308,-302,-298,-253,-241,-215,-221,-235,-230,-212,-210,-116,-109,-110,-212,-158,-198,-198,-205,-135,-150,-31,-100,-14,-91,-91,-114,-73,-405,-339,-1498,-1417,-2164,-2116,-2146,-1785,-2001,-2011,-1842,-1780,-1222,-1182,-1156,-1135,-6170,-2173,-2166,-2166,-6207,-6175,-6079,-5092,-1266,-597,-2008,-1950,-2166,-1690,-1412,-685,-630,-495,-11776,-11776,-11647,-6518,-11952,-6518,-6493,-5556]} 1. e4 {[%emt 0:00:40]} e6 {[%emt 0:00:17]} 2. d4 {[%emt 0:00:06]} d5 {[%emt 0:00:04]} 3. e5 {[%emt 0:00:06]} c5 {[%emt 0:00:07]} 4. c3 {[%emt 0:00:04]} Nc6 {[%emt 0:00:10]} 5. Nf3 {[%emt 0:00:06]} Bd7 {[%emt 0:00:15]} 6. Be2 {[%emt 0:00:25]} Nge7 {[%emt 0:01:33]} 7. O-O {[%emt 0:01:05]} Ng6 {[%emt 0:05:48]} 8. a3 {[%emt 0:05:57] C02: French: Advance Variation.} f6 {[%emt 0:05:47] [#]} 9. b4 $146 {[%emt 0:04:56]} (9. exf6 $14 cxd4 10. f7+ (10. Nxd4 Qxf6 11. Be3 Bd6 $11) 10... Kxf7 11. cxd4) ({Predecessor:} 9. Bd3 Qc7 10. Re1 O-O-O 11. Qe2 Be7 12. b4 fxe5 13. dxe5 Rdf8 14. g3 Rf7 15. b5 Na5 {0-1 (26) Calugar,A (2299)-Sadorra,J (2551) Richardson 2013}) 9... fxe5 $15 {[%emt 0:07:15] [#] Threatens to win with ...e4.} 10. b5 {[%emt 0:00:54] The position is equal.} Na5 {[%emt 0:03:15]} 11. Nxe5 {[%emt 0:01:00]} Nxe5 {[%emt 0:00:31]} 12. dxe5 {[%emt 0:00:01][%cal Oc3c4]} Qc7 {[%emt 0:07:43]} 13. Bf4 {[%emt 0:01:32][%cal Oc3c4]} c4 {[%emt 0:20:13]} 14. a4 {[%emt 0:00:40]} Nb3 {[%emt 0:00:51]} 15. Ra2 {[%emt 0:00:38]} a6 {[%emt 0:05:37]} 16. Qc2 {[%emt 0:02:34] [#]} (16. Nd2 $142) 16... Be7 $1 $17 {[%emt 0:02:42]} (16... axb5 17. Bh5+ g6 18. Bxg6+ Kd8 19. Bxh7 $17) 17. Bg4 {[%emt 0:04:36]} (17. Nd2 $17 {was necessary.}) 17... O-O $19 {[%emt 0:05:33]} (17... axb5 18. axb5 Rxa2 19. Qxa2) 18. Bg3 {[%emt 0:00:49]} axb5 {[%emt 0:03:44]} 19. axb5 {[%emt 0:00:21]} Qb6 {[%emt 0:07:34]} 20. Nd2 {[%emt 0:04:32]} Rxa2 {[%emt 0:02:45]} (20... Qxb5 21. Rb1 $17) (20... Bxb5 21. Rxa8 Rxa8 22. Nxb3 cxb3 23. Qxb3 $15) 21. Qxa2 {[%emt 0:00:07]} Nxd2 {[%emt 0:00:16]} (21... Bxb5 22. Nxb3 cxb3 23. Qxb3 $14) 22. Qxd2 {[%emt 0:00:03]} Qxb5 {[%emt 0:00:07]} 23. Qc2 {[%emt 0:03:59]} (23. Bf4 $17 {might work better.}) 23... Ra8 {[%emt 0:04:17]} 24. h4 {[%emt 0:02:29]} Qa4 {[%emt 0:00:57]} 25. Qd2 {[%emt 0:02:34]} Qa2 {[%emt 0:00:52]} 26. Qd4 {[%emt 0:00:55]} Qa7 {[%emt 0:02:11]} 27. Qd2 {[%emt 0:00:22]} Qa2 {[%emt 0:00:25]} 28. Qd4 {[%emt 0:00:16]} Qa7 {[%emt 0:00:09] And now ...Qxd4 would win.} 29. Qd2 {[%emt 0:00:06]} b5 {[%emt 0:00:12]} 30. Kh2 {[%emt 0:01:24]} Qa2 {[%emt 0:00:27]} 31. Qd4 {[%emt 0:02:58]} Qa7 {[%emt 0:00:11]} (31... b4 $142 32. cxb4 Qa7) 32. Qd2 $1 {[%emt 0:00:21]} Qb7 {[%emt 0:07:30]} 33. f4 {[%emt 0:01:59]} (33. Rb1 {was called for.}) 33... b4 {[%emt 0:04:09]} 34. cxb4 {[%emt 0:01:18]} Qxb4 {[%emt 0:00:03]} ({Inferior is} 34... Bxb4 35. Rb1 Rb8 36. Qd4 $17) 35. Qd1 {[%emt 0:01:18]} Qa4 {[%emt 0:00:57] Strongly threatening ...Qxd1.} 36. Qd4 {[%emt 0:00:13]} Qa7 {[%emt 0:00:14]} 37. Qb2 {[%emt 0:01:35]} Rb8 {[%emt 0:01:51]} 38. Ra1 {[%emt 0:00:17]} Qc7 {[%emt 0:00:41]} ({Don't play} 38... Rxb2 39. Rxa7 Kf7 40. Rxd7 $18) 39. Qc2 {[%emt 0:01:07]} g6 {[%emt 0:01:22]} ({Better is} 39... c3 $19 40. Bf3 Bc5) 40. h5 $17 {[%emt 0:00:43]} Kg7 {[%emt 0:00:35]} 41. Ra6 {[%emt 0:42:42]} (41. Bf2 $17) 41... Qc8 {[%emt 0:08:15]} 42. Ra7 {[%emt 0:00:00][%cal Og4e6]} Bc5 {[%emt 0:10:00]} 43. Ra1 {[%emt 0:00:00]} Bd4 {[%emt 0:01:16]} 44. Rf1 {[%emt 0:00:00]} Rb2 {[%emt 0:04:50]} (44... Qd8 $17 {Hoping for ...Rb2.} 45. Qd2 Bc5) 45. Qc1 {[%emt 0:00:00]} ({White should play} 45. Qd1 $15 Bc5 46. Bh4) 45... c3 {[%emt 0:03:08]} (45... Qd8 $17 {aiming for ...Ra2.} 46. f5 exf5) 46. f5 {[%emt 0:00:00]} (46. Bh4 $1 $11) 46... exf5 {[%emt 0:00:09] Chess con chili. Black is much more active.} 47. Qg5 {[%emt 0:00:00]} Qf8 {[%emt 0:01:39] Against Qf6+} (47... fxg4 {is a self mate.} 48. Qf6+ Kg8 49. h6) 48. h6+ $2 {[%emt 0:04:48][%mdl 8192] White does not recover from this.} (48. Bf3 $17 {is more resistant.}) 48... Kg8 {[%emt 0:00:51][%cal Bg7g8,Bg8f7,Bf7e6][%mdl 32]} 49. Bxf5 $2 {[%emt 0:15:12]} (49. Bf3 Be6 50. Rd1) 49... Bxf5 $19 {[%emt 0:00:06] Black is clearly winning.} 50. Rxf5 {[%emt 0:00:12]} Qxf5 {[%emt 0:00:11]} 51. Qd8+ {[%emt 0:00:03]} Kf7 {[%emt 0:03:51]} 52. Qxd5+ {[%emt 0:01:40]} Qe6 {[%emt 0:00:48]} 53. Qxd4 {[%emt 0:02:49][%mdl 4096] Endgame KQR-KQB} Qc6 {[%emt 0:00:22][%csl Gb2][%cal Rc6g2]} 54. e6+ {[%emt 0:01:08]} Kxe6 {[%emt 0:00:46][%csl Gb2][%cal Rc6g2]} 55. Qg4+ {[%emt 0:01:59]} Kf7 {[%emt 0:00:27][%csl Gb2][%cal Rc6g2]} 56. Be5 {[%emt 0:00:52]} Rf2 {[%emt 0:01:08]} (56... Rd2 $142 57. Bf4 Rd4) 57. Qg3 {[%emt 0:03:26]} Rf5 {[%emt 0:00:31]} 58. Bxc3 {[%emt 0:00:32]} Qc5 {[%emt 0:00:49] ( -> ...Rh5+)} 59. Qd3 {[%emt 0:00:55]} Rh5+ {[%emt 0:00:17]} 60. Kg3 {[%emt 0:00:09]} Qg5+ {[%emt 0:00:11]} (60... Rd5 $142 61. Qf3+ Kg8) 61. Kf2 {[%emt 0:00:21]} Qf5+ {[%emt 0:00:13]} 62. Qxf5+ {[%emt 0:00:05]} Rxf5+ {[%emt 0:00:03] KR-KB} 63. Ke3 {[%emt 0:00:14]} Rh5 {[%emt 0:00:33]} (63... g5 $142 64. Bb4 Rf6) 64. Bg7 {[%emt 0:00:05]} Ke6 {[%emt 0:00:13]} 65. g4 {[%emt 0:00:26]} (65. Kf4 $142 Ra5 66. Kg4) 65... Ra5 {[%emt 0:01:09]} 66. Kf4 {[%emt 0:00:55]} g5+ {[%emt 0:00:37]} 67. Ke4 {[%emt 0:00:04]} Ra4+ {[%emt 0:00:04]} 68. Bd4 Rb4 {[%emt 0:00:12] Weighted Error Value: White=0.68/Black=0.42} 0-1